bitfinex/quotes_BTCUSD_20251021
["timestamp","ask_amount","ask_price","bid_price","bid_amount"]
[1761025727761,3.70461483,108010.0,108000.0,0.1482]
[1761025728166,0.18520636,107990.0,107970.0,0.46065755]
[1761025728377,0.18520636,107990.0,107980.0,0.01276918]
[1761025728580,0.18520636,107990.0,107980.0,0.25431323]
[1761025728781,0.18520636,107990.0,107980.0,0.24154405]
[1761025729340,0.18520636,107990.0,107980.0,0.24204042]
[1761025729541,0.64316636,107990.0,107980.0,0.00049637]
[1761025736163,3.70551058,107990.0,107980.0,0.00049637]
[1761025737949,0.40234422,107990.0,107980.0,0.00049637]
[1761025738182,0.70550655,107990.0,107980.0,0.00049637]
[1761025740596,0.18515089,108020.0,107980.0,0.6161823]
[1761025740854,0.32627403,108010.0,107990.0,0.18518748]
[1761025741039,0.30312803,108010.0,107990.0,0.18518748]
[1761025741236,0.11796,108010.0,108000.0,0.18518518]
[1761025741444,0.27469943,108020.0,108000.0,0.18518518]
[1761025741445,3.0,108020.0,108000.0,0.19645274]
[1761025741687,0.30311089,108020.0,108000.0,0.22427521]
[1761025741893,3.0,108010.0,108000.0,0.22427521]
[1761025742542,3.0,108010.0,108000.0,0.18518518]
[1761025744950,3.0,108010.0,108000.0,0.11618518]
[1761025745149,3.0,108010.0,108000.0,0.1293423]
[1761025748074,0.18516803,108010.0,107990.0,0.33340086]
[1761025748204,0.18516803,108010.0,107990.0,0.42321987]
[1761025749442,0.18516803,108010.0,107990.0,0.49683554]
[1761025749645,0.30310518,108000.0,107990.0,0.1482]
[1761025750064,0.64310518,108000.0,107990.0,0.1482]
[1761025753281,0.64310518,108000.0,107980.0,0.33391491]
[1761025753483,0.02315029,107990.0,107980.0,0.33391491]
[1761025756612,0.65762999,108000.0,107980.0,0.33391491]
[1761025757187,0.65762999,108000.0,107990.0,0.18520233]
[1761025757395,0.47244416,108000.0,107990.0,0.18520233]
[1761025757813,0.21300237,108020.0,108000.0,0.18517531]
[1761025758046,0.11792,108010.0,108000.0,0.18517531]
[1761025758231,0.45792,108010.0,108000.0,0.18517531]
[1761025758397,0.11792,108010.0,108000.0,0.18517531]
[1761025758602,0.32623403,108010.0,108000.0,0.18517531]
[1761025758797,0.30308803,108010.0,108000.0,0.18517531]
[1761025759329,0.30308803,108010.0,107990.0,0.45132233]
[1761025759740,3.11792,108010.0,108000.0,0.19862702]
[1761025760039,3.11792,108010.0,108000.0,0.18518518]
[1761025760040,0.11792,108010.0,108000.0,0.18518518]
[1761025760193,0.141066,108010.0,108000.0,0.18518518]
[1761025761852,0.36430533,108020.0,108000.0,0.18518518]
[1761025762050,0.36430533,108020.0,108000.0,0.14533653]
[1761025762269,0.36430533,108020.0,108000.0,0.15759524]
[1761025762476,0.64303241,108020.0,108000.0,0.15759524]
[1761025762856,0.023146,108010.0,108000.0,0.15759524]
[1761025764782,0.64303241,108020.0,108000.0,0.15759524]
[1761025765006,0.023146,108010.0,108000.0,0.15759524]
[1761025765213,0.20831403,108010.0,108000.0,0.01225871]
[1761025765372,0.18516803,108010.0,108000.0,0.01225871]
[1761025765766,0.18516803,108010.0,108000.0,0.19744389]
[1761025765972,0.18516803,108010.0,108000.0,0.18518518]
[1761025766361,0.18516803,108010.0,108000.0,0.05278476]
[1761025766566,0.18516803,108010.0,108000.0,0.0679482]
[1761025767837,0.18516803,108010.0,108000.0,0.2161482]
[1761025768016,0.18516803,108010.0,108000.0,0.20098476]
[1761025768461,0.18516803,108010.0,108000.0,0.38616994]
[1761025769281,0.18516803,108010.0,108000.0,0.13198476]
[1761025769443,0.18516803,108010.0,108000.0,0.14523744]
[1761025774009,3.18516803,108010.0,108000.0,0.14523744]
[1761025774210,0.18516803,108010.0,108000.0,0.14523744]
[1761025775208,0.18516803,108010.0,108000.0,0.13198476]
[1761025776252,0.18516803,108010.0,107990.0,0.2574472]
[1761025776547,0.18516803,108010.0,107990.0,0.34726621]
[1761025777221,0.18518518,108000.0,107990.0,0.06298476]
[1761025777535,0.66617332,108000.0,107990.0,0.06298476]
[1761025777738,0.64302518,108000.0,107990.0,0.06298476]
[1761025779879,0.18520233,107990.0,107980.0,0.01346336]
[1761025780418,0.18520233,107990.0,107980.0,0.19868284]
[1761025780594,0.18520233,107990.0,107980.0,0.18571585]
[1761025781172,0.64302518,108000.0,107980.0,0.18571585]
[1761025781378,0.45784,108000.0,107980.0,0.18571585]
[1761025781580,0.34,108000.0,107990.0,0.18743049]
[1761025781748,0.45784,108000.0,107990.0,0.18520233]
[1761025781953,0.18525379,107960.0,107920.0,0.0002]
[1761025782159,0.52530529,107930.0,107920.0,0.00034907]
[1761025782527,3.70127756,107930.0,107920.0,0.00034907]
[1761025782737,3.66956277,107930.0,107920.0,0.00034907]
[1761025783038,3.69743188,107930.0,107920.0,0.00034907]
[1761025783304,0.18538318,107890.0,107860.0,0.16194974]
[1761025783571,0.18538318,107890.0,107870.0,0.20765901]
[1761025783796,0.31248775,107900.0,107860.0,0.31268411]
[1761025783939,0.37933864,107900.0,107870.0,0.01320876]
[1761025784149,0.02317174,107890.0,107870.0,0.207258]
[1761025784336,0.02317174,107890.0,107870.0,0.19404924]
[1761025784534,0.37933864,107900.0,107880.0,0.01278321]
[1761025784773,0.34,107900.0,107880.0,0.18538044]
[1761025784951,0.45784,107910.0,107890.0,0.1853736]
[1761025785374,0.64317966,107910.0,107890.0,0.1853736]
[1761025785571,0.45784,107910.0,107890.0,0.1853736]
[1761025786467,0.64318046,107910.0,107890.0,0.1853736]
[1761025786890,0.34,107910.0,107900.0,0.20077336]
[1761025787112,0.45788,107910.0,107900.0,0.18535681]
[1761025788095,0.45888,107910.0,107900.0,0.18550596]
[1761025788306,0.45988,107910.0,107900.0,0.18550596]
[1761025788724,0.45788,107910.0,107900.0,0.18550596]
[1761025789025,0.45988,107910.0,107900.0,0.18550596]
[1761025790401,0.45988,107910.0,107900.0,0.11650596]
[1761025790599,0.45988,107910.0,107900.0,0.13156571]
[1761025794438,0.45988,107910.0,107900.0,0.0152089]
[1761025795044,0.45988,107910.0,107900.0,0.20056571]
[1761025795252,0.45988,107910.0,107900.0,0.18550596]
[1761025796267,0.6960567,107910.0,107900.0,0.00014915]
[1761025796512,3.77695819,107910.0,107900.0,0.00014915]
[1761025796838,3.79149478,107910.0,107900.0,0.00014915]
[1761025797378,0.52535681,107900.0,107890.0,0.10634915]
[1761025800596,0.18537399,107890.0,107870.0,0.41893933]
[1761025800805,0.64329399,107890.0,107870.0,0.39083834]
[1761025801404,0.64329399,107890.0,107880.0,0.19971858]
[1761025801405,0.45792,107890.0,107880.0,0.19971858]
[1761025801622,0.45792,107890.0,107880.0,0.18539117]
[1761025803819,0.64329399,107890.0,107880.0,0.18539117]
[1761025804006,0.72708585,107890.0,107870.0,0.28448919]
[1761025804211,0.64329399,107890.0,107870.0,0.1854016]
[1761025804407,0.64329399,107890.0,107880.0,0.01296071]
[1761025805546,0.64329399,107890.0,107870.0,0.1854016]
[1761025805772,0.68485877,107890.0,107870.0,0.1854016]
[1761025806591,0.1853952,107880.0,107860.0,0.18542369]
[1761025806767,0.02317604,107870.0,107860.0,0.00014924]
[1761025807147,0.34736152,107870.0,107860.0,0.00014924]
[1761025807348,0.66418548,107870.0,107860.0,0.00014924]
[1761025808252,0.64332836,107870.0,107860.0,0.00014924]
[1761025808768,0.74418505,107870.0,107860.0,0.00014924]
[1761025809210,0.57688193,107870.0,107860.0,0.00014924]
[1761025809419,3.62253658,107870.0,107860.0,0.00014924]
[1761025809618,3.0,107860.0,107850.0,0.14878522]
[1761025809821,0.00013769,107860.0,107850.0,0.16103143]
[1761025810222,0.20874143,107860.0,107850.0,0.01224621]
[1761025810438,0.18556324,107860.0,107850.0,0.01224621]
[1761025810611,0.00013769,107860.0,107850.0,0.19768895]
[1761025810811,0.20874143,107860.0,107840.0,0.19493222]
[1761025811019,0.18556324,107860.0,107840.0,0.19493222]
[1761025811645,0.25410332,107860.0,107840.0,0.19493222]
[1761025811878,0.00013769,107860.0,107840.0,0.19493222]
[1761025812080,0.02213293,107860.0,107850.0,0.18544274]
[1761025813033,0.20755848,107860.0,107850.0,0.18544274]
[1761025813248,0.00013769,107860.0,107850.0,0.18544274]
[1761025813460,0.02331588,107860.0,107850.0,0.18544274]
[1761025814694,0.20874143,107860.0,107850.0,0.18544274]
[1761025814912,0.18556324,107860.0,107840.0,0.19493222]
[1761025815351,0.24014804,107860.0,107840.0,0.19493222]
[1761025817015,0.24014804,107860.0,107840.0,0.0002]
[1761025817016,0.54862308,107850.0,107840.0,0.0002]
[1761025817253,0.52544274,107850.0,107840.0,0.0002]
[1761025819349,0.52644274,107850.0,107840.0,0.0002]
[1761025819552,3.5947978,107850.0,107840.0,0.0002]
[1761025819757,3.68461681,107850.0,107840.0,0.0002]
[1761025820360,3.68561681,107850.0,107840.0,0.0002]
[1761025820598,3.7001617,107850.0,107840.0,0.0002]
[1761025820832,3.68561681,107850.0,107840.0,0.0002]
[1761025821766,0.18545994,107840.0,107820.0,0.14436747]
[1761025821941,0.18545994,107840.0,107820.0,0.15778101]
[1761025821942,0.27256762,107840.0,107820.0,0.15778101]
[1761025822305,0.27256762,107840.0,107820.0,0.16705572]
[1761025822498,0.69488894,107850.0,107830.0,0.18547713]
[1761025822697,0.69288894,107850.0,107830.0,0.18547713]
[1761025822895,0.02318249,107840.0,107830.0,0.18547713]
[1761025823086,0.02802618,107860.0,107840.0,0.18544703]
[1761025823087,0.20874245,107860.0,107840.0,0.18544703]
[1761025823287,0.25370437,107860.0,107840.0,0.18544703]
[1761025823509,0.26824741,107860.0,107840.0,0.18544703]
[1761025823711,0.26824741,107860.0,107830.0,0.31271098]
[1761025823915,0.18644306,107850.0,107830.0,0.3593463]
[1761025824111,0.18744306,107850.0,107830.0,0.31271098]
[1761025824353,0.18644306,107850.0,107830.0,0.31271098]
[1761025824769,0.18644306,107850.0,107830.0,0.19475098]
[1761025824989,0.18644306,107850.0,107840.0,0.18545994]
[1761025825507,0.18644306,107850.0,107830.0,0.19475098]
[1761025825681,0.23201211,107850.0,107830.0,0.19475098]
[1761025826005,0.23201211,107850.0,107840.0,0.18545994]
[1761025826183,0.03293094,107850.0,107840.0,0.18545994]
[1761025826386,0.24155434,107850.0,107840.0,0.18545994]
[1761025826588,0.218374,107850.0,107840.0,0.18545994]
[1761025826771,0.18544306,107850.0,107840.0,0.18545994]
[1761025827355,0.18544306,107850.0,107830.0,0.30110013]
[1761025828191,0.20864243,107840.0,107830.0,0.10634915]
[1761025828347,0.18545994,107840.0,107830.0,0.12075869]
[1761025828596,0.18545994,107840.0,107830.0,0.30623582]
[1761025828792,0.22940724,107840.0,107830.0,0.10634915]
[1761025829108,0.22940724,107840.0,107830.0,0.11953236]
[1761025829327,0.0439473,107840.0,107830.0,0.30500949]
[1761025829528,0.22940724,107840.0,107830.0,0.29182628]
[1761025829724,0.22940724,107840.0,107830.0,0.10634915]
[1761025829962,0.22940724,107840.0,107830.0,0.11851375]
[1761025830365,0.22940724,107840.0,107830.0,0.10634915]
[1761025831479,0.56940724,107840.0,107820.0,0.18549407]
[1761025834094,0.56940724,107840.0,107820.0,0.18549353]
[1761025837742,0.18547713,107830.0,107820.0,0.18549353]
[1761025837946,0.26096557,107830.0,107820.0,0.18549353]
[1761025840562,0.07548844,107830.0,107820.0,0.18549353]
[1761025842085,0.26096557,107830.0,107820.0,0.18549353]
[1761025842871,0.26096557,107830.0,107810.0,0.31297487]
[1761025843079,0.26096557,107830.0,107820.0,0.01575269]
[1761025843562,0.26096557,107830.0,107810.0,0.40279388]
[1761025844296,0.18549434,107820.0,107810.0,0.1182]
[1761025844500,0.18549434,107820.0,107810.0,0.30371154]
[1761025845179,0.23014033,107820.0,107810.0,0.1182]
[1761025845579,0.23014033,107820.0,107810.0,0.11869788]
[1761025846209,0.26096557,107830.0,107810.0,0.32017431]
[1761025846402,0.18549434,107820.0,107810.0,0.11869788]
[1761025846679,0.18549434,107820.0,107810.0,0.30420942]
[1761025846886,0.26096557,107830.0,107810.0,0.30420942]
[1761025847052,0.26071979,107830.0,107810.0,0.30420942]
[1761025847496,0.18549434,107820.0,107810.0,0.30420942]
[1761025848378,0.26071979,107830.0,107810.0,0.30420942]
[1761025848947,0.20868113,107820.0,107810.0,0.00073788]
[1761025849147,0.57243443,107820.0,107810.0,0.00073788]
[1761025851360,0.57343443,107820.0,107810.0,0.00073788]
[1761025853093,0.57443443,107820.0,107810.0,0.00073788]
[1761025853754,3.57443443,107820.0,107810.0,0.00073788]
[1761025861826,3.52749434,107820.0,107810.0,0.00073788]
[1761025862452,3.54203772,107820.0,107810.0,0.00073788]
[1761025862672,3.52749434,107820.0,107810.0,0.00073788]
[1761025863671,3.54204236,107820.0,107810.0,0.00073788]
[1761025867882,0.01654802,107820.0,107810.0,0.20056383]
[1761025868055,0.002,107820.0,107810.0,0.18624942]
[1761025868885,0.001,107820.0,107810.0,0.16024942]
[1761025869206,0.001,107820.0,107810.0,0.17410005]
[1761025869403,0.02418679,107820.0,107810.0,0.17410005]
[1761025869856,0.001,107820.0,107810.0,0.17410005]
[1761025870103,0.34,107830.0,107820.0,0.18549434]
[1761025871014,3.0,107840.0,107830.0,0.18547713]
[1761025871216,0.34,107840.0,107830.0,0.18547713]
[1761025871422,0.35454573,107840.0,107830.0,0.18547713]
[1761025872181,0.36956876,107840.0,107830.0,0.18547713]
[1761025872392,0.35454573,107840.0,107830.0,0.18547713]
[1761025872953,0.54000567,107840.0,107830.0,0.18547713]
[1761025873158,0.35454573,107840.0,107830.0,0.18547713]
[1761025873587,0.54000567,107840.0,107820.0,0.18549434]
[1761025873906,0.02318464,107830.0,107820.0,0.18549434]
[1761025875092,0.341,107840.0,107830.0,0.18547713]
[1761025875470,0.34,107840.0,107830.0,0.18547713]
[1761025875674,0.341,107840.0,107830.0,0.18547713]
[1761025877164,0.341,107840.0,107830.0,0.14247713]
[1761025878179,0.39485053,107840.0,107830.0,0.14247713]
[1761025878390,0.58031047,107840.0,107830.0,0.14247713]
[1761025878567,0.58131047,107840.0,107830.0,0.14247713]
[1761025879379,0.58131047,107840.0,107820.0,0.18549434]
[1761025879761,0.02318464,107830.0,107820.0,0.18549434]
[1761025880146,0.08363415,107830.0,107820.0,0.18549434]
[1761025880601,0.26911128,107830.0,107820.0,0.18549434]
[1761025880806,0.24592664,107830.0,107820.0,0.18549434]
[1761025881025,0.24592664,107830.0,107810.0,0.18550445]
[1761025881235,0.24592664,107830.0,107810.0,0.18551092]
[1761025882239,0.34,107830.0,107820.0,0.18549434]
[1761025884139,0.34,107830.0,107820.0,0.14149434]
[1761025885104,0.341,107840.0,107830.0,0.18547713]
[1761025885306,0.001,107840.0,107830.0,0.18547713]
[1761025886591,0.02418249,107840.0,107830.0,0.18547713]
[1761025886923,0.02318249,107840.0,107830.0,0.18547713]
[1761025887839,3.0,107840.0,107830.0,0.18547713]
[1761025888251,3.0,107860.0,107840.0,0.18544475]
[1761025888417,0.02318034,107850.0,107840.0,0.18544475]
[1761025888622,0.27674398,107860.0,107840.0,0.18544475]
[1761025888819,0.59356579,107860.0,107840.0,0.18544475]
[1761025889064,0.65479186,107860.0,107840.0,0.18544475]
[1761025889273,0.64024592,107860.0,107840.0,0.18544475]
[1761025889869,0.02318034,107850.0,107840.0,0.18544475]
[1761025891287,0.02418034,107850.0,107840.0,0.13244475]
[1761025891644,0.02418034,107850.0,107840.0,0.14698041]
[1761025892610,0.02518034,107850.0,107840.0,0.14698041]
[1761025893555,0.26985289,107860.0,107850.0,0.18544274]
[1761025893711,0.22376766,107870.0,107850.0,0.18544274]
[1761025893909,0.02908847,107870.0,107850.0,0.21723149]
[1761025894134,3.0,107860.0,107850.0,0.21723149]
[1761025894738,0.00049604,107860.0,107850.0,0.18544274]
[1761025895347,0.00149604,107860.0,107850.0,0.18544274]
[1761025896050,0.00778221,107860.0,107850.0,0.18544274]
[1761025896256,0.00049604,107860.0,107850.0,0.18544274]
[1761025896659,0.21139753,107860.0,107830.0,0.30331547]
[1761025896872,0.24882792,107860.0,107840.0,0.1854594]
[1761025897501,0.20511136,107860.0,107840.0,0.1854594]
[1761025897694,0.18592159,107860.0,107840.0,0.1854594]
[1761025897912,0.00049604,107860.0,107850.0,0.18544274]
[1761025898331,0.00049604,107860.0,107850.0,0.15044273]
[1761025898755,0.18592159,107860.0,107850.0,0.15044273]
[1761025899376,0.18692159,107860.0,107840.0,0.1854594]
[1761025899740,0.00628617,107850.0,107840.0,0.1854594]
[1761025904492,0.19220791,107860.0,107840.0,0.1854594]
[1761025904699,0.00628617,107850.0,107840.0,0.1854594]
[1761025904897,0.00678221,107860.0,107850.0,0.18544274]
[1761025905086,0.19220776,107860.0,107840.0,0.1854594]
[1761025905275,0.18592159,107860.0,107840.0,0.1854594]
[1761025905487,0.00628617,107850.0,107840.0,0.1164594]
[1761025905839,0.00628617,107850.0,107840.0,0.13500539]
[1761025909303,0.00628617,107850.0,107840.0,0.13504539]
[1761025912427,0.00628617,107850.0,107840.0,0.06904539]
[1761025913237,0.19220776,107860.0,107850.0,0.18544274]
[1761025913437,0.18592159,107860.0,107850.0,0.18544274]
[1761025914153,0.00049604,107860.0,107850.0,0.18544274]
[1761025914367,0.00049604,107860.0,107850.0,0.20903695]
[1761025914368,0.00678221,107860.0,107850.0,0.20903695]
[1761025914708,0.00778221,107860.0,107850.0,0.18544274]
[1761025915126,0.19320776,107860.0,107840.0,4e-05]
[1761025915334,0.18544274,107850.0,107840.0,0.18549994]
[1761025915545,0.03786505,107850.0,107840.0,0.18549994]
[1761025915750,0.00628617,107850.0,107840.0,0.18549994]
[1761025915953,0.19172891,107850.0,107840.0,4e-05]
[1761025916126,0.18544274,107850.0,107840.0,4e-05]
[1761025916522,3.18544274,107850.0,107840.0,4e-05]
[1761025916724,3.27526175,107850.0,107840.0,4e-05]
[1761025919521,0.18546525,107840.0,107820.0,0.34776905]
[1761025919696,0.18546525,107840.0,107820.0,0.43758806]
[1761025920227,0.18547713,107830.0,107810.0,0.19478649]
[1761025920440,0.1917633,107830.0,107810.0,0.1482]
[1761025920652,0.22412728,107830.0,107810.0,0.35226051]
[1761025920858,0.22412728,107830.0,107810.0,0.33370936]
[1761025921479,0.22412728,107830.0,107810.0,0.1482]
[1761025921480,0.18549434,107820.0,107810.0,0.1482]
[1761025923861,0.18551154,107810.0,107800.0,0.11776]
[1761025924099,0.03710059,107810.0,107800.0,0.0187022]
[1761025924308,0.19179771,107810.0,107800.0,0.20423095]
[1761025924520,0.18551154,107810.0,107800.0,0.18567808]
[1761025925841,0.18549434,107820.0,107800.0,0.18567808]
[1761025926066,0.00628617,107810.0,107800.0,0.18567808]
[1761025926295,0.19179771,107810.0,107800.0,0.18567808]
[1761025926475,0.03772921,107810.0,107800.0,0.18567808]
[1761025926687,0.00628617,107810.0,107800.0,0.18567808]
[1761025927242,0.19179771,107810.0,107800.0,0.00014933]
[1761025927423,0.19179771,107810.0,107800.0,0.0187022]
[1761025927792,0.18551154,107810.0,107800.0,0.20423095]
[1761025927995,0.18551154,107810.0,107800.0,0.18567808]
[1761025928129,0.22261213,107810.0,107800.0,0.18567808]
[1761025928743,0.22261213,107810.0,107800.0,0.00014933]
[1761025928928,0.22261213,107810.0,107800.0,0.20423095]
[1761025929126,0.03710059,107810.0,107800.0,0.18567808]
[1761025929326,0.00628617,107810.0,107800.0,0.18571808]
[1761025929569,0.19179771,107810.0,107800.0,0.00018933]
[1761025929770,0.18551154,107810.0,107800.0,0.0187422]
[1761025930085,0.18551154,107810.0,107800.0,0.20427095]
[1761025930326,0.22261213,107810.0,107800.0,0.00018933]
[1761025930591,0.22261213,107810.0,107800.0,0.0187422]
[1761025930819,0.22261213,107810.0,107800.0,0.00018933]
[1761025931129,0.22261213,107810.0,107800.0,0.0187422]
[1761025931327,0.22261213,107810.0,107800.0,0.20427095]
[1761025931632,0.22261213,107810.0,107800.0,0.00018933]
[1761025955275,0.56261213,107810.0,107800.0,0.00018933]
[1761025956805,0.18552875,107800.0,107790.0,0.18554596]
[1761025957048,0.26034284,107800.0,107790.0,0.00570429]
[1761025957241,0.26034284,107800.0,107790.0,0.19125025]
[1761025957449,0.26034284,107800.0,107780.0,0.29998466]
[1761025957611,0.26034284,107800.0,107790.0,0.00601526]
[1761025957806,0.26034284,107800.0,107790.0,0.01807582]
[1761025960095,0.18556318,107780.0,107770.0,4e-05]
[1761025960292,0.03943024,107780.0,107770.0,0.27543864]
[1761025960498,0.18556318,107780.0,107770.0,0.08985901]
[1761025960702,0.18554596,107790.0,107770.0,0.27543941]
[1761025960919,0.18556318,107780.0,107770.0,0.27543941]
[1761025961143,0.18556318,107780.0,107770.0,4e-05]
[1761025961354,0.18556318,107780.0,107770.0,0.01859804]
[1761025961542,0.01762601,107780.0,107770.0,0.01859804]
[1761025961756,0.22638458,107780.0,107770.0,4e-05]
[1761025961975,0.20318919,107780.0,107770.0,4e-05]
[1761025965848,0.02790483,107790.0,107770.0,0.1856204]
[1761025966021,0.57664403,107790.0,107770.0,0.19180688]
[1761025966223,0.55345079,107790.0,107770.0,0.1856204]
[1761025966462,0.02319539,107780.0,107770.0,0.1856204]
[1761025971750,0.02319539,107780.0,107770.0,0.27543941]
[1761025972132,0.02319109,107800.0,107780.0,0.19266576]
[1761025972306,0.02319109,107800.0,107780.0,0.18556318]
[1761025972512,0.20872088,107800.0,107780.0,0.18556318]
[1761025972711,0.2597884,107810.0,107790.0,0.18554596]
[1761025972916,0.20871984,107800.0,107790.0,0.18554596]
[1761025973114,0.23237957,107800.0,107790.0,0.18554596]
[1761025973670,0.04685082,107800.0,107790.0,0.11654596]
[1761025973871,0.07004191,107800.0,107790.0,0.11654596]
[1761025974714,0.02319109,107800.0,107790.0,0.11654596]
[1761025976623,0.26506866,107810.0,107800.0,0.18552875]
[1761025976842,0.22261213,107810.0,107800.0,0.18552875]
[1761025977889,0.22361213,107810.0,107790.0,0.11654596]
[1761025978112,0.22361213,107810.0,107790.0,0.13398474]
[1761025978859,0.22361213,107810.0,107800.0,0.18552875]
[1761025979314,0.18551154,107810.0,107800.0,0.18552875]
[1761025979505,0.18551154,107810.0,107790.0,0.11654596]
[1761025979760,0.18651154,107810.0,107800.0,0.18552875]
[1761025979961,0.20106102,107810.0,107790.0,0.11654596]
[1761025980159,0.20006102,107810.0,107790.0,0.11654596]
[1761025980373,0.27788907,107810.0,107790.0,0.11654596]
[1761025980589,0.27888907,107810.0,107800.0,0.18552875]
[1761025981006,0.27788907,107810.0,107800.0,0.11652875]
[1761025981154,0.01454948,107810.0,107800.0,0.11652875]
[1761025981958,0.02318894,107810.0,107800.0,0.11652875]
[1761025982653,0.02418894,107810.0,107800.0,0.11652875]
[1761025982877,0.02418894,107810.0,107800.0,0.13435814]
[1761025983123,0.02318894,107810.0,107800.0,0.13435814]
[1761025983660,0.20004675,107820.0,107810.0,0.18551154]
[1761025983862,0.2209513,107820.0,107810.0,0.18551154]
[1761025984264,0.01469993,107820.0,107810.0,0.18451154]
[1761025984469,0.22338106,107820.0,107800.0,0.11652875]
[1761025984673,0.18564306,107820.0,107810.0,0.18551154]
[1761025984914,0.20882985,107820.0,107810.0,0.18551154]
[1761025985115,0.20882985,107820.0,107800.0,0.11652875]
[1761025985315,0.25197768,107820.0,107800.0,0.13290725]
[1761025985494,0.22879089,107820.0,107800.0,0.13290725]
[1761025985862,0.02318894,107810.0,107800.0,0.13290725]
[1761025987849,0.02318894,107810.0,107800.0,0.06390725]
[1761025989286,0.02418894,107810.0,107800.0,0.06390725]
[1761025989489,0.04948692,107810.0,107800.0,0.06390725]
[1761025991431,0.23499846,107810.0,107800.0,0.06390725]
[1761025991593,0.21180952,107810.0,107800.0,0.0163785]
[1761025992370,0.02319109,107800.0,107790.0,0.33374596]
[1761025992613,0.04669115,107800.0,107790.0,0.1482]
[1761025992915,0.04669115,107800.0,107790.0,0.33374596]
[1761025993460,0.04669115,107800.0,107790.0,0.18554596]
[1761025994980,0.04669115,107800.0,107790.0,0.15254596]
[1761025995159,0.04669115,107800.0,107790.0,0.17011913]
[1761025995577,0.40731159,107810.0,107790.0,0.17011913]
[1761025995984,0.00164967,107800.0,107790.0,0.17011913]
[1761025996778,0.18717842,107800.0,107790.0,0.17011913]
[1761025996943,0.18552875,107800.0,107790.0,0.15254596]
[1761025997142,0.24497775,107800.0,107790.0,0.15254596]
[1761025997833,0.40731159,107810.0,107790.0,0.15254596]
[1761025998034,0.18717842,107800.0,107790.0,0.15254596]
[1761025998233,0.18552875,107800.0,107790.0,0.15254596]
[1761025998683,0.18552875,107800.0,107780.0,0.45136318]
[1761025998885,0.18552875,107800.0,107780.0,0.54118219]
[1761025999045,0.24574034,107800.0,107780.0,0.54118219]
[1761025999803,0.18554596,107790.0,107780.0,0.45136318]
[1761026000004,0.24523142,107800.0,107780.0,0.45136318]
[1761026001316,0.18554596,107790.0,107780.0,0.45136318]
[1761026001670,0.24523142,107800.0,107780.0,0.33376318]
[1761026003637,0.18554596,107790.0,107780.0,0.33376318]
[1761026004264,0.21956365,107790.0,107780.0,0.33376318]
[1761026005574,0.21956365,107790.0,107780.0,0.18556318]
[1761026006135,0.03401769,107790.0,107780.0,0.18556318]
[1761026006423,0.21956365,107790.0,107780.0,0.18556318]
[1761026007309,0.21956365,107790.0,107770.0,0.46069942]
[1761026007526,0.21956365,107790.0,107780.0,0.20411949]
[1761026007680,0.21956365,107790.0,107780.0,0.18556318]
[1761026008639,0.21956365,107790.0,107770.0,0.55051843]
[1761026011364,0.21956365,107790.0,107770.0,0.40231843]
[1761026014959,0.21956365,107790.0,107780.0,0.01855631]
[1761026015355,0.21956365,107790.0,107780.0,0.20411949]
[1761026015580,0.03401769,107790.0,107780.0,0.18556318]
[1761026015916,0.21956365,107790.0,107770.0,0.40231843]
[1761026016048,0.21956365,107790.0,107780.0,0.01855631]
[1761026024857,3.04740715,107790.0,107780.0,0.01855631]
[1761026025122,0.23295311,107790.0,107780.0,0.01855631]
[1761026027839,0.18554596,107790.0,107780.0,0.01855631]
[1761026032167,0.18554596,107790.0,107780.0,0.20411949]
[1761026032292,0.18554596,107790.0,107780.0,0.18556318]
[1761026033312,0.23838569,107800.0,107780.0,0.18556318]
[1761026033528,3.0,107790.0,107780.0,0.18556318]
[1761026034081,3.07887859,107790.0,107780.0,0.18556318]
[1761026034283,0.07887859,107790.0,107780.0,0.18556318]
[1761026034505,3.0,107790.0,107780.0,0.18556318]
[1761026034672,0.18554596,107790.0,107780.0,0.18556318]
[1761026035415,3.18554596,107790.0,107780.0,0.18556318]
[1761026035619,0.18554596,107790.0,107770.0,0.40231843]
[1761026035765,0.18554596,107790.0,107780.0,0.01855631]
[1761026036389,0.22793913,107790.0,107780.0,0.01855631]
[1761026038186,0.18554596,107790.0,107780.0,0.01855631]
[1761026038438,0.18554596,107790.0,107780.0,0.20411949]
[1761026038643,0.18554596,107790.0,107780.0,0.18556318]
[1761026039094,3.0,107790.0,107780.0,0.18556318]
[1761026042493,0.18554596,107790.0,107780.0,0.18556318]
[1761026042693,0.22793913,107790.0,107780.0,0.18556318]
[1761026042890,0.22793913,107790.0,107770.0,0.40231843]
[1761026043058,0.22793913,107790.0,107780.0,0.20411949]
[1761026043391,0.22793913,107790.0,107780.0,0.18556318]
[1761026044042,0.39700566,107810.0,107780.0,0.27538219]
[1761026044263,0.18564661,107820.0,107800.0,0.18552875]
[1761026044391,0.20019759,107820.0,107790.0,0.39284497]
[1761026044595,0.20019759,107820.0,107800.0,0.18552737]
[1761026044896,0.22514147,107820.0,107800.0,0.18552737]
[1761026045361,0.001,107810.0,107800.0,0.18552737]
[1761026045579,0.18549789,107820.0,107800.0,0.18552737]
[1761026047840,0.18549789,107820.0,107800.0,0.11652737]
[1761026048061,0.18549789,107820.0,107800.0,0.13508024]
[1761026048469,0.22352278,107820.0,107800.0,0.13508024]
[1761026049366,0.19475098,107830.0,107800.0,0.13508024]
[1761026049600,3.0,107820.0,107800.0,0.13508024]
[1761026049732,0.18549608,107820.0,107800.0,0.13508024]
[1761026054940,3.0,107820.0,107810.0,0.11651154]
[1761026055350,3.0,107820.0,107810.0,0.13506269]
[1761026058442,0.20013227,107830.0,107810.0,0.13506269]
[1761026058651,0.25907222,107830.0,107810.0,0.13506269]
[1761026060708,0.25906387,107830.0,107810.0,0.13506269]
[1761026062149,9.228e-05,107830.0,107820.0,0.18549434]
[1761026062759,9.228e-05,107830.0,107820.0,0.14349434]
[1761026063011,9.228e-05,107830.0,107820.0,0.16204377]
[1761026063513,9.228e-05,107830.0,107820.0,0.01854943]
[1761026063715,9.228e-05,107830.0,107820.0,0.20404377]
[1761026063921,9.228e-05,107830.0,107820.0,0.18549434]
[1761026064083,0.18556941,107830.0,107810.0,0.23391154]
[1761026064290,0.22505786,107830.0,107810.0,0.32373055]
[1761026064670,0.03948845,107830.0,107810.0,0.32373055]
[1761026064875,0.22496558,107830.0,107810.0,0.32373055]
[1761026065758,0.18547713,107830.0,107820.0,0.01854943]
[1761026069932,0.18547713,107830.0,107810.0,0.32027998]
[1761026070444,0.18547713,107830.0,107820.0,0.01854943]
[1761026072908,0.18547713,107830.0,107810.0,0.39272615]
[1761026075338,0.18549434,107820.0,107810.0,0.1174]
[1761026075574,0.24114092,107820.0,107810.0,0.1174]
[1761026075769,0.22259149,107820.0,107810.0,0.1174]
[1761026076210,0.22259149,107820.0,107800.0,0.1855253]
[1761026076413,0.22259149,107820.0,107800.0,0.39270431]
[1761026076643,0.18551154,107810.0,107800.0,0.20717901]
[1761026076857,0.22259149,107820.0,107800.0,0.30288875]